[Event "NOR-chT Eliteserien 2021-22"]
[Site "Norway"]
[Date "2022.02.04"]
[Round "4.10"]
[White "Solberg, Joachim"]
[Black "Torngren, Gustav"]
[Result "*"]
[ECO "B11"]
[WhiteElo "2216"]
[BlackElo "2229"]
[Annotator "ChessBase"]
[PlyCount "74"]
[EventDate "2021.10.29"]
[EventType "team-tourn"]
[EventCountry "NOR"]
[SourceTitle "playchess.com"]
[Source "ChessBase"]
[SourceQuality "1"]
[TimeControl "40/5400+30:1800+30"]

1. e4 c6 2. Nc3 d5 3. Nf3 Bg4 4. h3 Bxf3 5. Qxf3 e6 6. Be2 d4 7. Nb1 Nd7 8. O-O Ne7 9. d3 Ng6 10. Qg3 e5 11. f4 exf4 12. Bxf4 Nxf4 13. Qxf4 Qf6 14. Bg4 Qxf4 15. Bxd7+ Kxd7 16. Rxf4 f6 17. a4 Bd6 18. Rf1 Rhf8 19. Nd2 Rae8 20. Nb3 c5 21. Nd2 h5 22. Nc4 g6 23. Rf3 f5 24. Nxd6 Kxd6 25. Raf1 Re5 26. Rg3 Rf6 27. exf5 gxf5 28. Rg7 Re7 29. Rxe7 Kxe7 30. Re1+ Re6 31. Rxe6+ Kxe6 32. Kf2 f4 33. Kf3 Kf5 34. h4 b6 35. b3 a6 36. g3 fxg3 37. Kxg3 Ke5 *

[Event "NOR-chT Eliteserien 2021-22"]
[Site "Norway"]
[Date "2022.02.04"]
[Round "4.11"]
[White "Nordquelle, Daniel"]
[Black "Mikalsen, Odd Erling"]
[Result "*"]
[ECO "C10"]
[WhiteElo "2130"]
[BlackElo "1875"]
[Annotator "ChessBase"]
[PlyCount "26"]
[EventDate "2021.10.29"]
[EventType "team-tourn"]
[EventCountry "NOR"]
[SourceTitle "playchess.com"]
[Source "ChessBase"]
[SourceQuality "1"]
[TimeControl "40/5400+30:1800+30"]

1. e4 {[%emt 0:00:03]} e6 {[%emt 0:02:23]} 2. d4 {[%emt 0:00:13]} d5 {[%emt 0:00:18]} 3. Nd2 {[%emt 0:00:22]} dxe4 {[%emt 0:00:18]} 4. Nxe4 {[%emt 0:00:08]} Nd7 {[%emt 0:00:44]} 5. g3 {[%emt 0:03:51]} Ngf6 {[%emt 0:02:13]} 6. Bg5 {[%emt 0:13:52]} h6 {[%emt 0:01:24]} 7. Bxf6 {[%emt 0:01:04]} Nxf6 {[%emt 0:00:58]} 8. Nxf6+ {[%emt 0:01:13]} Qxf6 {[%emt 0:00:37]} 9. Bg2 {[%emt 0:00:06]} c5 {[%emt 0:05:27]} 10. Nf3 {[%emt 0:05:15]} cxd4 {[%emt 0:02:15]} 11. Qxd4 {[%emt 0:00:46]} Be7 {[%emt 0:02:39]} 12. O-O {[%emt 0:07:21]} O-O {[%emt 0:00:29]} 13. Rad1 {[%emt 0:10:37]} b6 {[%emt 0:03:27]} *

[Event "NOR-chT Eliteserien 2021-22"]
[Site "Norway"]
[Date "2022.02.05"]
[Round "5.4"]
[White "Torngren, Gustav"]
[Black "Royset, Pal"]
[Result "1-0"]
[ECO "A25"]
[WhiteElo "2229"]
[BlackElo "2146"]
[Annotator "RC"]
[PlyCount "77"]
[EventDate "2021.10.29"]
[EventType "team-tourn"]
[EventCountry "NOR"]
[SourceTitle "playchess.com"]
[Source "ChessBase"]
[SourceQuality "1"]
[TimeControl "40/5400+30:1800+30"]

1. c4 {[%emt 0:01:00]} e5 {[%emt 0:01:36]} 2. Nc3 {[%emt 0:00:00]} Nc6 {[%emt 0:00:37]} 3. e3 {[%emt 0:01:25]} Nf6 {[%emt 0:02:26]} 4. Qb3 {[%emt 0:00:11]} Bc5 {[%emt 0:03:47]} 5. g3 {[%emt 0:02:36]} O-O {[%emt 0:02:19]} 6. Bg2 {[%emt 0:00:09]} d6 {[%emt 0:07:14]} 7. Nge2 {[%emt 0:02:02]} Re8 {[%emt 0:04:51]} 8. d3 {[%emt 0:01:34]} Nb4 {[%emt 0:05:48]} 9. Nd5 {[%emt 0:01:15]} Nfxd5 {[%emt 0:05:23]} 10. cxd5 {[%emt 0:00:37]} c6 {[%emt 0:03:32]} 11. dxc6 {[%emt 0:02:29]} bxc6 {[%emt 0:01:03]} 12. a3 {[%emt 0:02:08]} Nd5 {[%emt 0:06:06]} 13. O-O {[%emt 0:05:19]} Ba6 {[%emt 0:03:15]} 14. Qc2 {[%emt 0:13:42]} Rc8 {[%emt 0:02:54]} 15. b4 {[%emt 0:00:35]} Bb6 {[%emt 0:00:46]} 16. Rd1 {[%emt 0:00:39]} Qf6 {[%emt 0:02:13]} 17. Qb3 {[%emt 0:04:08]} Qe6 {[%emt 0:05:55]} 18. Rb1 {[%emt 0:02:51]} Bb7 {[%emt 0:10:09]} 19. a4 {[%emt 0:02:52]} Qg4 {[%emt 0:02:58]} 20. Re1 {[%emt 0:04:08]} Qd7 {[%emt 0:03:19]} 21. Ba3 {[%emt 0:01:27]} h5 {[%emt 0:02:16]} 22. a5 {[%emt 0:10:41]} Bd8 {[%emt 0:00:58]} 23. e4 {[%emt 0:00:24]} Nf6 {[%emt 0:01:42]} 24. d4 {[%emt 0:00:13]} Ba6 {[%emt 0:03:29]} 25. Rbd1 {[%emt 0:04:12]} Qb7 {[%emt 0:01:19]} 26. Qa2 {[%emt 0:02:43]} d5 {[%emt 0:02:42]} 27. exd5 {[%emt 0:03:25]} cxd5 {[%emt 0:00:51]} 28. dxe5 {[%emt 0:00:19]} Rxe5 {[%emt 0:00:53]} 29. Nf4 {[%emt 0:00:52]} Bc4 {[%emt 0:01:50]} 30. Qa1 {[%emt 0:03:57]} Rxe1+ {[%emt 0:01:13]} 31. Rxe1 {[%emt 0:00:01]} Be7 {[%emt 0:01:59]} 32. Qd4 {[%emt 0:04:24]} Bxb4 {[%emt 0:02:36]} 33. Qb2 {[%emt 0:00:29]} Rb8 {[%emt 0:02:28]} 34. Rb1 {[%emt 0:00:05]} Bxa3 {[%emt 0:00:57]} 35. Qxb7 {[%emt 0:00:04]} Rxb7 {[%emt 0:00:06]} 36. Rxb7 {[%emt 0:00:09]} Bc5 {[%emt 0:01:16]} 37. Bxd5 {[%emt 0:02:40]} Nxd5 {[%emt 0:03:15]} 38. Nxd5 {[%emt 0:00:03]} Be2 {[%emt 0:01:35]} 39. Rc7 {[%emt 0:00:41]} 1-0

[Event "NOR-chT Eliteserien 2021-22"]
[Site "Norway"]
[Date "2022.02.06"]
[Round "6.3"]
[White "Byklum, Bjornar"]
[Black "Mikalsen, Erlend"]
[Result "1/2-1/2"]
[ECO "E59"]
[WhiteElo "2318"]
[BlackElo "2368"]
[Annotator "ChessBase"]
[PlyCount "56"]
[EventDate "2021.10.29"]
[EventType "team-tourn"]
[EventCountry "NOR"]
[SourceTitle "playchess.com"]
[Source "ChessBase"]
[SourceQuality "1"]
[TimeControl "40/5400+30:1800+30"]

1. d4 {[%emt 0:00:04]} Nf6 {[%emt 0:11:22]} 2. c4 {[%emt 0:00:07]} e6 {[%emt 0:00:05]} 3. Nc3 {[%emt 0:00:11]} Bb4 {[%emt 0:00:07]} 4. e3 {[%emt 0:00:34]} O-O {[%emt 0:01:48]} 5. Bd3 {[%emt 0:00:12]} d5 {[%emt 0:00:07]} 6. a3 {[%emt 0:01:17]} Bxc3+ {[%emt 0:00:11]} 7. bxc3 {[%emt 0:00:07]} dxc4 {[%emt 0:00:08]} 8. Bxc4 {[%emt 0:00:06]} c5 {[%emt 0:00:07]} 9. Nf3 {[%emt 0:00:35]} Qc7 {[%emt 0:00:27]} 10. Be2 {[%emt 0:00:14]} Rd8 {[%emt 0:12:07]} 11. Bb2 {[%emt 0:02:59]} Nc6 {[%emt 0:00:11]} 12. O-O {[%emt 0:00:44]} e5 {[%emt 0:00:25]} 13. h3 {[%emt 0:00:14]} Bf5 {[%emt 0:06:46]} 14. Rc1 {[%emt 0:10:41]} Qb6 {[%emt 0:05:26]} 15. Ba1 {[%emt 0:00:12]} Be4 {[%emt 0:00:09]} 16. Qa4 {[%emt 0:05:55]} Qc7 {[%emt 0:03:35]} 17. Rfd1 {[%emt 0:05:13]} Qe7 {[%emt 0:00:23]} 18. Nxe5 {[%emt 0:15:41]} Nxe5 {[%emt 0:00:06]} 19. dxe5 {[%emt 0:00:06]} Rxd1+ {[%emt 0:01:06]} 20. Rxd1 {[%emt 0:01:28]} Qxe5 {[%emt 0:00:02]} 21. c4 {[%emt 0:03:14]} Qg5 {[%emt 0:01:12]} 22. Bf1 {[%emt 0:00:53]} Bc6 {[%emt 0:01:27]} 23. Qc2 {[%emt 0:05:42]} Ne4 {[%emt 0:01:58]} 24. Bb2 {[%emt 0:09:59]} Re8 {[%emt 0:00:42]} 25. Bc1 {[%emt 0:01:06]} Qe5 {[%emt 0:07:48]} 26. Bb2 {[%emt 0:01:25]} Qg5 {[%emt 0:00:54]} 27. Bc1 {[%emt 0:00:14]} Qe5 {[%emt 0:00:28]} 28. Bb2 {[%emt 0:01:21]} Qg5 {[%emt 0:00:56]} 1/2-1/2

[Event "NOR-chT Eliteserien 2021-22"]
[Site "Norway"]
[Date "2022.02.06"]
[Round "6.4"]
[White "Flermoen, Peter"]
[Black "Astrup, Kim Chr."]
[Result "1/2-1/2"]
[ECO "B15"]
[WhiteElo "2297"]
[BlackElo "2224"]
[Annotator "ChessBase"]
[PlyCount "86"]
[EventDate "2021.10.29"]
[EventType "team-tourn"]
[EventCountry "NOR"]
[SourceTitle "playchess.com"]
[Source "ChessBase"]
[SourceQuality "1"]
[TimeControl "40/5400+30:1800+30"]

1. e4 {[%emt 0:00:04]} c6 {[%emt 0:10:42]} 2. d4 {[%emt 0:00:10]} d5 {[%emt 0:00:14]} 3. Nc3 {[%emt 0:00:08]} dxe4 {[%emt 0:00:32]} 4. Nxe4 {[%emt 0:00:08]} Nf6 {[%emt 0:00:31]} 5. Nxf6+ {[%emt 0:02:25]} exf6 {[%emt 0:00:20]} 6. Bc4 {[%emt 0:02:46]} Bd6 {[%emt 0:01:06]} 7. Ne2 {[%emt 0:00:53]} O-O {[%emt 0:05:39]} 8. Be3 {[%emt 0:01:36]} Nd7 {[%emt 0:02:54]} 9. Bb3 {[%emt 0:00:46]} Re8 {[%emt 0:03:16]} 10. Qd2 {[%emt 0:01:28]} a5 {[%emt 0:00:53]} 11. a3 {[%emt 0:02:12]} Qc7 {[%emt 0:10:38]} 12. c4 {[%emt 0:21:34]} Nf8 {[%emt 0:02:36]} 13. d5 {[%emt 0:06:11]} c5 {[%emt 0:03:13]} 14. Ba4 {[%emt 0:04:28]} Bd7 {[%emt 0:01:56]} 15. Bxd7 {[%emt 0:00:10]} Qxd7 {[%emt 0:00:20]} 16. h3 {[%emt 0:06:37]} Ng6 {[%emt 0:02:06]} 17. O-O {[%emt 0:10:55]} f5 {[%emt 0:07:01]} 18. a4 {[%emt 0:10:35]} Re4 {[%emt 0:04:41]} 19. Nc3 {[%emt 0:03:23]} Rxc4 {[%emt 0:03:38]} 20. f4 {[%emt 0:00:08]} Re8 {[%emt 0:03:58]} 21. g3 {[%emt 0:02:48]} h5 {[%emt 0:03:34]} 22. h4 {[%emt 0:00:09]} Nf8 {[%emt 0:00:39]} 23. Rfe1 {[%emt 0:02:16]} Rb4 {[%emt 0:01:28]} 24. Bf2 {[%emt 0:02:39]} Rxe1+ {[%emt 0:01:13]} 25. Rxe1 {[%emt 0:00:11]} Nh7 {[%emt 0:00:11]} 26. Nb5 {[%emt 0:06:33]} Nf6 {[%emt 0:03:16]} 27. Nxd6 {[%emt 0:01:51]} Qxd6 {[%emt 0:00:08]} 28. Re5 {[%emt 0:00:18]} Ne4 {[%emt 0:01:17]} 29. Qc2 {[%emt 0:01:18]} f6 {[%emt 0:02:52]} 30. Re8+ {[%emt 0:00:11]} Kf7 {[%emt 0:00:29]} 31. Rc8 {[%emt 0:00:10]} Qxd5 {[%emt 0:00:18]} 32. Qe2 {[%emt 0:01:54]} Kg6 {[%emt 0:01:36]} 33. Rh8 {[%emt 0:00:38]} Kf7 {[%emt 0:02:49]} 34. Qxh5+ {[%emt 0:00:26]} Ke7 {[%emt 0:00:13]} 35. Rc8 {[%emt 0:02:44]} Nd6 {[%emt 0:01:03]} 36. Rc7+ {[%emt 0:01:20]} Ke6 {[%emt 0:00:44]} 37. Bxc5 {[%emt 0:00:50]} Qd3 {[%emt 0:02:13]} 38. Bxb4 {[%emt 0:01:59]} Qxg3+ {[%emt 0:00:48]} 39. Kh1 {[%emt 0:03:34]} Qh3+ {[%emt 0:00:49]} 40. Kg1 {[%emt 0:00:12]} Qg3+ {[%emt 0:00:15]} 41. Kh1 {[%emt 0:03:12]} Qh3+ {[%emt 0:06:07]} 42. Kg1 {[%emt 0:00:09]} Qg3+ {[%emt 0:00:16]} 43. Kh1 {[%emt 0:00:10]} Qh3+ {[%emt 0:02:13]} 1/2-1/2

[Event "NOR-chT Eliteserien 2021-22"]
[Site "Norway"]
[Date "2022.02.06"]
[Round "6.5"]
[White "Demac, Elias"]
[Black "Aulin-Jansson, Joran"]
[Result "1/2-1/2"]
[ECO "B13"]
[WhiteElo "2206"]
[BlackElo "2214"]
[Annotator "ChessBase"]
[PlyCount "128"]
[EventDate "2021.10.29"]
[EventType "team-tourn"]
[EventCountry "NOR"]
[SourceTitle "playchess.com"]
[Source "ChessBase"]
[SourceQuality "1"]
[TimeControl "40/5400+30:1800+30"]

1. e4 {[%emt 0:00:02]} c6 {[%emt 0:01:07]} 2. d4 {[%emt 0:00:06]} d5 {[%emt 0:00:05]} 3. exd5 {[%emt 0:00:03]} cxd5 {[%emt 0:00:06]} 4. Nf3 {[%emt 0:00:05]} Nc6 {[%emt 0:00:21]} 5. Bb5 {[%emt 0:00:06]} Nf6 {[%emt 0:00:49]} 6. Ne5 {[%emt 0:00:06]} Bd7 {[%emt 0:03:44]} 7. Nxd7 {[%emt 0:00:42]} Qxd7 {[%emt 0:00:07]} 8. c3 {[%emt 0:01:56]} a6 {[%emt 0:00:11]} 9. Bd3 {[%emt 0:00:15]} e6 {[%emt 0:01:54]} 10. O-O {[%emt 0:00:07]} Bd6 {[%emt 0:01:39]} 11. Nd2 {[%emt 0:00:10]} Qc7 {[%emt 0:00:55]} 12. h3 {[%emt 0:02:02]} O-O {[%emt 0:00:10]} 13. Re1 {[%emt 0:00:05]} b5 {[%emt 0:01:28]} 14. a3 {[%emt 0:03:12]} Rab8 {[%emt 0:07:51]} 15. Nf3 {[%emt 0:09:02]} h6 {[%emt 0:06:47]} 16. Qe2 {[%emt 0:00:45]} Na5 {[%emt 0:14:41]} 17. Ne5 {[%emt 0:07:41]} Nb3 {[%emt 0:01:03]} 18. Rb1 {[%emt 0:00:34]} Nxc1 {[%emt 0:00:09]} 19. Rbxc1 {[%emt 0:00:43]} Qb6 {[%emt 0:02:25]} 20. Bb1 {[%emt 0:02:14]} a5 {[%emt 0:04:59]} 21. Ng4 {[%emt 0:06:21]} Nxg4 {[%emt 0:08:48]} 22. hxg4 {[%emt 0:00:05]} Rfe8 {[%emt 0:04:08]} 23. b4 {[%emt 0:07:30]} Rb7 {[%emt 0:04:38]} 24. g3 {[%emt 0:02:33]} Be7 {[%emt 0:01:44]} 25. Bd3 {[%emt 0:10:34]} Bf6 {[%emt 0:02:11]} 26. Kg2 {[%emt 0:07:36]} Rc8 {[%emt 0:01:14]} 27. Rc2 {[%emt 0:00:36]} Kf8 {[%emt 0:06:58]} 28. f4 {[%emt 0:04:09]} Rbc7 {[%emt 0:00:29]} 29. Rec1 {[%emt 0:01:04]} Rb8 {[%emt 0:00:22]} 30. Qd2 {[%emt 0:07:27]} g6 {[%emt 0:01:45]} 31. g5 {[%emt 0:04:41]} hxg5 {[%emt 0:01:24]} 32. fxg5 {[%emt 0:00:05]} Bg7 {[%emt 0:00:36]} 33. Qf4 {[%emt 0:01:07]} axb4 {[%emt 0:01:13]} 34. cxb4 {[%emt 0:05:28]} Rxc2+ {[%emt 0:03:28]} 35. Rxc2 {[%emt 0:00:01]} e5 {[%emt 0:00:30]} 36. dxe5 {[%emt 0:00:38]} Qe6 {[%emt 0:00:52]} 37. Re2 {[%emt 0:07:53]} Ra8 {[%emt 0:00:29]} 38. Qc1 {[%emt 0:02:31]} Rc8 {[%emt 0:01:31]} 39. Qe1 {[%emt 0:03:03]} d4 {[%emt 0:01:33]} 40. Rc2 {[%emt 0:05:25]} Rxc2+ {[%emt 0:05:44]} 41. Bxc2 {[%emt 0:30:01]} Qa2 {[%emt 0:32:27]} 42. Qe2 {[%emt 0:00:00]} Bxe5 {[%emt 0:00:00]} 43. Bd3 {[%emt 0:00:00]} Qd5+ {[%emt 0:00:00]} 44. Qf3 {[%emt 0:00:00]} Qa2+ {[%emt 0:00:00]} 45. Be2 {[%emt 0:00:00]} Qd2 {[%emt 0:00:00]} 46. Kh3 {[%emt 0:00:00]} Qxg5 {[%emt 0:00:00]} 47. Bxb5 {[%emt 0:00:00]} Qh6+ {[%emt 0:00:00]} 48. Kg2 {[%emt 0:00:00]} Qd2+ {[%emt 0:00:00]} 49. Be2 {[%emt 0:00:00]} Qe1 {[%emt 0:00:00]} 50. b5 {[%emt 0:00:00]} f5 {[%emt 0:02:34]} 51. Bc4 {[%emt 0:00:00]} Kg7 {[%emt 0:01:31]} 52. a4 {[%emt 0:00:23]} Qc3 {[%emt 0:02:25]} 53. Qxc3 {[%emt 0:03:36]} dxc3 {[%emt 0:00:34]} 54. Bd3 {[%emt 0:00:04]} Bc7 {[%emt 0:00:06]} 55. Kf3 {[%emt 0:00:06]} Kf6 {[%emt 0:00:13]} 56. g4 {[%emt 0:01:05]} Ke5 {[%emt 0:04:15]} 57. gxf5 {[%emt 0:00:17]} gxf5 {[%emt 0:00:06]} 58. Bc2 {[%emt 0:00:38]} f4 {[%emt 0:00:20]} 59. Kg4 {[%emt 0:00:44]} Kd4 {[%emt 0:00:58]} 60. Kf3 {[%emt 0:01:12]} Bb8 {[%emt 0:01:08]} 61. Bb1 {[%emt 0:00:29]} Kc5 {[%emt 0:01:41]} 62. Ke4 {[%emt 0:00:20]} Kc4 {[%emt 0:00:07]} 63. Bc2 {[%emt 0:00:06]} Bc7 {[%emt 0:00:09]} 64. Bd1 {[%emt 0:00:26]} Bb8 {[%emt 0:00:49]} 1/2-1/2

[Event "NOR-chT Eliteserien 2021-22"]
[Site "Norway"]
[Date "2022.02.06"]
[Round "6.5"]
[White "Grebstad, Kjell Borre"]
[Black "Solberg, Joachim"]
[Result "1/2-1/2"]
[ECO "E04"]
[WhiteElo "2064"]
[BlackElo "2216"]
[Annotator "ChessBase"]
[PlyCount "43"]
[EventDate "2021.10.29"]
[EventType "team-tourn"]
[EventCountry "NOR"]
[SourceTitle "playchess.com"]
[Source "ChessBase"]
[SourceQuality "1"]
[TimeControl "40/5400+30:1800+30"]

1. d4 {[%emt 0:00:04]} Nf6 {[%emt 0:04:46]} 2. c4 {[%emt 0:00:15]} e6 {[%emt 0:00:04]} 3. g3 {[%emt 0:00:13]} d5 {[%emt 0:00:04]} 4. Nf3 {[%emt 0:00:35]} dxc4 {[%emt 0:00:04]} 5. Bg2 {[%emt 0:00:26]} c5 {[%emt 0:09:21]} 6. O-O {[%emt 0:01:05]} Nc6 {[%emt 0:00:11]} 7. dxc5 {[%emt 0:02:01]} Qxd1 {[%emt 0:00:12]} 8. Rxd1 {[%emt 0:00:08]} Bxc5 {[%emt 0:00:02]} 9. Nbd2 {[%emt 0:01:01]} Ke7 {[%emt 0:05:10]} 10. Nxc4 {[%emt 0:02:44]} Ne4 {[%emt 0:01:31]} 11. Be3 {[%emt 0:05:46]} Bxe3 {[%emt 0:02:01]} 12. Nxe3 {[%emt 0:02:03]} Rd8 {[%emt 0:08:31]} 13. Rxd8 {[%emt 0:04:06]} Kxd8 {[%emt 0:00:15]} 14. Rd1+ {[%emt 0:03:04]} Ke7 {[%emt 0:00:14]} 15. Nd4 {[%emt 0:06:33]} Nxd4 {[%emt 0:00:15]} 16. Rxd4 {[%emt 0:00:49]} Nd6 {[%emt 0:00:27]} 17. Nc4 {[%emt 0:11:29]} Nxc4 {[%emt 0:00:27]} 18. Rxc4 {[%emt 0:00:07]} Kd6 {[%emt 0:00:09]} 19. Rd4+ {[%emt 0:07:35]} Ke7 {[%emt 0:00:13]} 20. Rc4 {[%emt 0:04:47]} Kd6 {[%emt 0:00:06]} 21. Rd4+ {[%emt 0:16:56]} Ke7 {[%emt 0:00:21]} 22. Rc4 {[%emt 0:03:23]} 1/2-1/2

[Event "NOR-chT Eliteserien 2021-22"]
[Site "Norway"]
[Date "2022.02.06"]
[Round "6.6"]
[White "Diesen, Bruce"]
[Black "Mork, Kjell Arne"]
[Result "1-0"]
[ECO "B48"]
[WhiteElo "2108"]
[BlackElo "2246"]
[Annotator "ChessBase"]
[PlyCount "113"]
[EventDate "2021.10.29"]
[EventType "team-tourn"]
[EventCountry "NOR"]
[SourceTitle "playchess.com"]
[Source "ChessBase"]
[SourceQuality "1"]
[TimeControl "40/5400+30:1800+30"]

1. e4 {[%emt 0:00:02]} c5 {[%emt 0:00:06]} 2. Nf3 {[%emt 0:00:04]} e6 {[%emt 0:00:04]} 3. d4 {[%emt 0:00:04]} cxd4 {[%emt 0:00:04]} 4. Nxd4 {[%emt 0:00:06]} Nc6 {[%emt 0:00:04]} 5. Nc3 {[%emt 0:00:11]} Qc7 {[%emt 0:00:08]} 6. Be3 {[%emt 0:00:43]} a6 {[%emt 0:00:05]} 7. Qd2 {[%emt 0:01:06]} Nf6 {[%emt 0:00:37]} 8. f3 {[%emt 0:00:26]} Ne5 {[%emt 0:01:33]} 9. g4 {[%emt 0:10:20]} h6 {[%emt 0:04:20]} 10. O-O-O {[%emt 0:06:33]} Bb4 {[%emt 0:18:48]} 11. Kb1 {[%emt 0:03:05]} Bxc3 {[%emt 0:02:01]} 12. Qxc3 {[%emt 0:00:51]} Qxc3 {[%emt 0:00:05]} 13. bxc3 {[%emt 0:00:07]} d5 {[%emt 0:01:18]} 14. exd5 {[%emt 0:05:08]} Nxd5 {[%emt 0:07:24]} 15. Bd2 {[%emt 0:02:30]} b5 {[%emt 0:04:27]} 16. Re1 {[%emt 0:05:04]} Nc4 {[%emt 0:07:03]} 17. Bxc4 {[%emt 0:10:08]} bxc4 {[%emt 0:00:06]} 18. f4 {[%emt 0:00:40]} O-O {[%emt 0:08:46]} 19. h4 {[%emt 0:01:59]} Bb7 {[%emt 0:04:04]} 20. Rhg1 {[%emt 0:02:25]} Nf6 {[%emt 0:02:47]} 21. g5 {[%emt 0:07:37]} Ne4 {[%emt 0:05:56]} 22. Kc1 {[%emt 0:01:42]} h5 {[%emt 0:07:16]} 23. Re3 {[%emt 0:10:08]} Bd5 {[%emt 0:04:56]} 24. Rge1 {[%emt 0:03:09]} Nc5 {[%emt 0:06:20]} 25. f5 {[%emt 0:07:25]} Rab8 {[%emt 0:03:42]} 26. g6 {[%emt 0:02:29]} Rb6 {[%emt 0:06:14]} 27. gxf7+ {[%emt 0:03:39]} Kxf7 {[%emt 0:00:11]} 28. fxe6+ {[%emt 0:01:36]} Nxe6 {[%emt 0:00:44]} 29. Kd1 {[%emt 0:04:14]} Rd8 {[%emt 0:01:07]} 30. Rf1+ {[%emt 0:04:12]} Kg8 {[%emt 0:00:16]} 31. Rf5 {[%emt 0:00:52]} Nxd4 {[%emt 0:01:29]} 32. cxd4 {[%emt 0:00:02]} g6 {[%emt 0:00:15]} 33. Rg5 {[%emt 0:00:35]} Kf7 {[%emt 0:00:26]} 34. a3 {[%emt 0:02:17]} Be6 {[%emt 0:01:16]} 35. Bc3 {[%emt 0:00:46]} Rb5 {[%emt 0:01:02]} 36. Rg2 {[%emt 0:01:20]} Bf5 {[%emt 0:00:40]} 37. Kd2 {[%emt 0:00:28]} Rd7 {[%emt 0:00:11]} 38. Rge2 {[%emt 0:00:41]} Rbd5 {[%emt 0:00:31]} 39. Kc1 {[%emt 0:01:48]} Bg4 {[%emt 0:00:55]} 40. Re1 {[%emt 0:00:28]} g5 {[%emt 0:01:00]} 41. hxg5 {[%emt 0:32:23]} Rxg5 {[%emt 0:31:37]} 42. Re8 {[%emt 0:00:00]} Rg6 {[%emt 0:00:00]} 43. Rc8 {[%emt 0:00:00]} Be6 {[%emt 0:00:00]} 44. Rf1+ {[%emt 0:00:00]} Ke7 {[%emt 0:00:00]} 45. Bb4+ {[%emt 0:00:00]} Rd6 {[%emt 0:00:00]} 46. Rc7+ {[%emt 0:00:00]} Bd7 {[%emt 0:00:00]} 47. Rxc4 {[%emt 0:00:00]} h4 {[%emt 0:00:28]} 48. d5 {[%emt 0:00:00]} h3 {[%emt 0:00:33]} 49. Rh4 {[%emt 0:00:00]} Kd8 {[%emt 0:00:48]} 50. Bxd6 {[%emt 0:00:00]} Rxd6 {[%emt 0:00:06]} 51. c4 {[%emt 0:00:00]} Rg6 {[%emt 0:00:17]} 52. Rh7 {[%emt 0:00:00]} Rg2 {[%emt 0:02:06]} 53. Rf8+ {[%emt 0:00:00]} Kc7 {[%emt 0:00:09]} 54. Rff7 {[%emt 0:00:00]} h2 {[%emt 0:00:09]} 55. Rxd7+ {[%emt 0:00:00]} Kb6 {[%emt 0:00:06]} 56. Rd6+ {[%emt 0:00:00]} Kc5 {[%emt 0:00:47]} 57. Rdh6 {[%emt 0:00:42]} 1-0

[Event "NOR-chT Eliteserien 2021-22"]
[Site "Norway"]
[Date "2022.02.06"]
[Round "6.6"]
[White "Brasoy, Aksel"]
[Black "Flaata, Alexander R."]
[Result "0-1"]
[ECO "A49"]
[WhiteElo "1893"]
[BlackElo "2019"]
[Annotator "NA"]
[PlyCount "66"]
[EventDate "2021.10.29"]
[EventType "team-tourn"]
[EventCountry "NOR"]
[SourceTitle "playchess.com"]
[Source "ChessBase"]
[SourceQuality "1"]
[TimeControl "40/5400+30:1800+30"]

1. Nf3 {[%emt 0:00:05]} Nf6 {[%emt 0:02:36]} 2. g3 {[%emt 0:00:10]} d6 {[%emt 0:00:46]} 3. d4 {[%emt 0:00:27]} c5 {[%emt 0:02:18]} 4. d5 {[%emt 0:00:31]} g6 {[%emt 0:00:32]} 5. Bg2 {[%emt 0:00:25]} Bg7 {[%emt 0:00:07]} 6. O-O {[%emt 0:00:34]} O-O {[%emt 0:00:52]} 7. a4 {[%emt 0:02:10]} Na6 {[%emt 0:03:36]} 8. c4 {[%emt 0:02:17]} Nb4 {[%emt 0:02:34]} 9. Nc3 {[%emt 0:01:22]} Bf5 {[%emt 0:01:57]} 10. Ne1 {[%emt 0:00:34]} Qd7 {[%emt 0:02:50]} 11. e4 {[%emt 0:04:54]} Bh3 {[%emt 0:01:01]} 12. f3 {[%emt 0:01:11]} Nh5 {[%emt 0:12:51]} 13. Be3 {[%emt 0:04:23]} Bxg2 {[%emt 0:00:36]} 14. Kxg2 $11 {[%emt 0:03:10]} e6 {[%emt 0:09:26]} 15. Qd2 {[%emt 0:13:23]} Rae8 {[%emt 0:04:39]} 16. Nd3 {[%emt 0:03:16]} exd5 {[%emt 0:02:57]} 17. cxd5 {[%emt 0:08:17]} f5 {[%emt 0:05:30]} 18. e5 {[%emt 0:18:16]} Bxe5 {[%emt 0:04:16]} 19. Nxb4 {[%emt 0:10:02]} cxb4 {[%emt 0:01:26]} 20. Nb5 {[%emt 0:00:13]} f4 {[%emt 0:04:05]} 21. Bf2 {[%emt 0:03:48]} fxg3 {[%emt 0:00:44]} 22. hxg3 {[%emt 0:00:15]} Qf5 {[%emt 0:14:11]} 23. Nd4 {[%emt 0:01:32]} Bxd4 {[%emt 0:00:12]} 24. Bxd4 {[%emt 0:00:11]} Qxd5 {[%emt 0:00:07]} 25. Rad1 {[%emt 0:09:51]} a5 {[%emt 0:01:08]} 26. Qf2 {[%emt 0:00:32]} Qg5 {[%emt 0:01:29]} 27. Kh2 {[%emt 0:01:23]} Rf5 {[%emt 0:04:25]} 28. Rfe1 {[%emt 0:04:52]} Rxe1 {[%emt 0:02:34]} 29. Rxe1 {[%emt 0:00:46]} Nxg3 {[%emt 0:00:27]} 30. Qc2 {[%emt 0:05:18]} Nf1+ {[%emt 0:03:33]} 31. Rxf1 {[%emt 0:00:43]} Qh4+ {[%emt 0:00:13]} 32. Kg1 {[%emt 0:00:59]} Rg5+ {[%emt 0:00:12]} 33. Qg2 {[%emt 0:00:08]} Qxd4+ {[%emt 0:00:20]} 0-1